fUSD/lending_fUSD_20250422
["ID","MTS","AMOUNT","RATE_DAILY","PERIOD"]
[358664492,1745350698976,-1864.2019659,0.00019986,2]
[358664493,1745350699001,-300.0,0.00019999,2]
[358664494,1745350699023,-500.0,0.00019999,2]
[358664495,1745350699047,-500.0,0.00019999,2]
[358664496,1745350699070,-223.58506207,0.00019999,2]
[358664497,1745350699094,-192.7329688,0.00019999,2]
[358664498,1745350699114,-1135.0,0.0002,2]
[358664499,1745350699138,-35784.43512926,0.0002,2]
[358664500,1745350732689,-204.12977817,0.000199,2]
[358664501,1745350732712,-1134.172,0.00019985,2]
[358664502,1745350732735,-174.422,0.00019985,2]
[358664503,1745350732758,-280.9646551,0.00019986,2]
[358664504,1745350732781,-214.8523054,0.00019986,2]
[358664505,1745350732804,-1247.0,0.0002,2]
[358664506,1745350732827,-308818.45926133,0.0002,2]
[358664507,1745350760097,-330.23165471,0.00019999,2]
[358664508,1745350760120,-500.0,0.00019999,2]
[358664509,1745350760142,-1132.0,0.0002,2]
[358664510,1745350760165,-721556.76834529,0.0002,2]
[358664511,1745350787736,-1019.0,0.0002,2]
[358664512,1745350787769,-461.82,0.0002,2]
[358664513,1745350787799,-461.82,0.0002,2]
[358664514,1745350787831,-461.82,0.0002,2]
[358664515,1745350787867,-461.82,0.0002,2]
[358664516,1745350787899,-461.82,0.0002,2]
[358664517,1745350787932,-461.82,0.0002,2]
[358664518,1745350787965,-461.82,0.0002,2]
[358664519,1745350788002,-461.82,0.0002,2]
[358664520,1745350788032,-461.82,0.0002,2]
[358664521,1745350788054,-461.82,0.0002,2]
[358664522,1745350788076,-461.82,0.0002,2]
[358664523,1745350788097,-461.82,0.0002,2]
[358664524,1745350788118,-461.82,0.0002,2]
[358664525,1745350788140,-461.82,0.0002,2]
[358664526,1745350788161,-461.82,0.0002,2]
[358664527,1745350788605,-461.82,0.0002,2]
[358664528,1745350788629,-461.82,0.0002,2]
[358664529,1745350788654,-461.82,0.0002,2]
[358664530,1745350788677,-461.82,0.0002,2]
[358664531,1745350788704,-461.99190582,0.0002,2]
[358664532,1745350788730,-580351.42809418,0.0002,2]
[358664533,1745350820873,-233.05004274,0.000199,2]
[358664534,1745350820894,-8727.2868448,0.000199,2]
[358664535,1745350820916,-150.0,0.0001995,2]
[358664536,1745350820938,-222.08051839,0.0001999,2]
[358664537,1745350820960,-900.0,0.00019999,2]
[358664538,1745350820983,-300.0,0.00019999,2]
[358664539,1745350821007,-917.0,0.0002,2]
[358664540,1745350821031,-676735.65183776,0.0002,2]
[358664541,1745350821054,-21404.93075631,0.0002,2]
[358664542,1745350848641,-7988.60848257,0.000199,2]
[358664543,1745350848663,-916.1338477,0.000199,2]
[358664544,1745350848688,-372.00383193,0.000199,2]
[358664545,1745350848710,-2013.6193149,0.00019986,2]
[358664546,1745350848731,-821.0,0.0002,2]
[358664547,1745350848754,-703453.6345229,0.0002,2]
[358664548,1745350872164,-743.0,0.0002,2]
[358664549,1745350872187,-170257.0,0.0002,2]
[358664550,1745350939145,-425.65864699,0.000199,2]
[358664551,1745350939167,-219.8784565,0.000199,2]
[358664552,1745350939189,-30655.569415,0.00019986,2]
[358664553,1745350939211,-150.0,0.00019993,2]
[358664554,1745350939234,-500.0,0.00019999,2]
[358664555,1745350939256,-676.0,0.0002,2]
[358664556,1745350939278,-336488.89348151,0.0002,2]
[358664557,1745351018939,-179.203185,0.000198,2]
[358664558,1745351018963,-300.0,0.00019899,2]
[358664559,1745351018986,-9557.43070948,0.000199,2]
[358664560,1745351019309,-664.21884036,0.000199,2]
[358664561,1745351019333,-1646.6484219,0.00019986,2]
[358664562,1745351019356,-1888.9907774,0.00019986,2]
[358664563,1745351019378,-636.06679723,0.00019999,2]
[358664564,1745351019401,-602.0,0.0002,2]
[358664565,1745351019423,-674525.44126863,0.0002,2]
[358664566,1745351081392,-6145.42002061,0.000199,2]
[358664567,1745351081413,-209.60585968,0.000199,2]
[358664568,1745351081434,-566.95237277,0.000199,2]
[358664569,1745351081455,-33318.55887139,0.0001999,2]
[358664570,1745351081477,-312.94997787,0.00019999,2]
[358664571,1745351081499,-300.0,0.00019999,2]
[358664572,1745351081520,-556.0,0.0002,2]
[358664573,1745351081541,-50590.51289768,0.0002,2]
[358664574,1745351227826,173.54,0.00025359,120]
[358664585,1745351432181,-501.0,0.00019899,2]
[358664586,1745351432192,-900.0,0.00019899,2]
[358664587,1745351432206,-300.0,0.00019899,2]
[358664588,1745351432216,-150.0,0.000199,2]
[358664589,1745351432227,-2453.26807136,0.000199,2]
[358664590,1745351432238,-8102.40927896,0.000199,2]
[358664591,1745351432249,-391.03466826,0.000199,2]
[358664592,1745351432259,-451.74618599,0.000199,2]
[358664593,1745351432268,-563.1041795,0.000199,2]
[358664594,1745351432279,-14784.9093021,0.000199,2]
[358664595,1745351432290,-196.74764541,0.000199,2]
[358664596,1745351432299,-564.65783299,0.000199,2]
[358664597,1745351432309,-170.05735253,0.000199,2]
[358664598,1745351432318,-150.0,0.00019973,2]
[358664599,1745351432328,-713.0,0.00019973,2]
[358664600,1745351432337,-185.09961136,0.00019973,2]
[358664601,1745351432347,-500.0,0.00019973,2]
[358664602,1745351432358,-500.0,0.00019973,2]
[358664603,1745351432368,-479.49555953,0.00019973,2]
[358664604,1745351432378,-171.94808928,0.00019973,2]
[358664605,1745351432632,-500.0,0.00019973,2]
[358664606,1745351432646,-334.94894474,0.00019973,2]
[358664607,1745351432656,-627.26589791,0.00019973,2]
[358664608,1745351432666,-238.3865063,0.00019986,2]
[358664609,1745351432677,-182.2930021,0.00019986,2]
[358664610,1745351432689,-1744.8021092,0.00019986,2]
[358664611,1745351432698,-1636.8114212,0.00019986,2]
[358664612,1745351432707,-26563.0657075,0.00019986,2]
[358664613,1745351432717,-808.12433105,0.00019986,2]
[358664614,1745351433161,-618.69732205,0.00019986,2]
[358664615,1745351433172,-502.0,0.0002,2]
[358664616,1745351433183,-16760.86870307,0.0002,2]
[358664617,1745351436667,-1559.18235918,0.0002,2]
[358664618,1745351436680,-443.07910095,0.0002,2]
[358664619,1745351437006,-133.13442092,0.0002,2]
[358664620,1745351438258,-6332.47062478,0.0002,2]
[358664621,1745351438274,-712.4115,0.0002,2]
[358664622,1745351438293,-435.68168761,0.0002,2]
[358664626,1745351438521,-228453.14339013,0.0002,2]
[358664628,1745351438533,-647.33760701,0.0002,2]
[358664630,1745351438544,-338.16455713,0.0002,2]
[358664634,1745351438576,-113.49753631,0.0002,2]
[358664637,1745351438591,-3283843.59107118,0.0002,2]
[358664639,1745351438603,-240534.64116869,0.0002,2]
[358664641,1745351438612,-449.99999901,0.0002,2]
[358664643,1745351438622,-94979.71898824,0.0002,2]
[358664645,1745351438631,-191.04291001,0.0002,2]
[358664647,1745351438640,-166.66,0.00020192,2]
[358664649,1745351438650,-250.0,0.000202,2]
[358664651,1745351438660,-250.0,0.000202,2]
[358664653,1745351438670,-250.0,0.000202,2]
[358664655,1745351438681,-250.0,0.000202,2]
[358664656,1745351438690,-250.0,0.000202,2]
[358664658,1745351438699,-250.0,0.000202,2]
[358664660,1745351438709,-250.0,0.000202,2]
[358664662,1745351438718,-250.0,0.000202,2]
[358664664,1745351438728,-250.0,0.000202,2]
[358664666,1745351438737,-250.0,0.000202,2]
[358664668,1745351438747,-289.2,0.000202,2]
[358664670,1745351438756,-1495.71,0.00020292,2]
[358664672,1745351438766,-511.64,0.00020292,2]
[358664674,1745351438775,-167.2,0.00020473,2]
[358664676,1745351438785,-158.0,0.000209,2]
[358664678,1745351438794,-258.47009912,0.000209,2]
[358664680,1745351438803,-3890.67728188,0.000209,3]
[358664682,1745351438812,-5289.60343438,0.00020936,2]
[358664683,1745351438823,-250.0,0.00021,2]
[358664685,1745351438833,-166.66,0.00021025,2]
[358664687,1745351438842,-500.0,0.00021096,2]
[358664688,1745351438851,-8102.40927895,0.00021122,2]
[358664690,1745351438860,-23900.0,0.00021636,2]
[358664692,1745351438869,-2016.62,0.00021659,2]
[358664694,1745351438879,-420.0,0.0002167,2]
[358664696,1745351438888,-4996.7,0.00021676,2]
[358664697,1745351438897,-1493.55,0.00021701,2]
[358664699,1745351438908,-2434.02,0.00021722,2]
[358664701,1745351438917,-173.54,0.00021737,2]
[358664703,1745351438927,-151.0,0.00021757,2]
[358664705,1745351438937,-200.70146,0.00021757,2]
[358664707,1745351438946,-1000.0,0.00021768,2]
[358664709,1745351438956,-1260.0,0.00021774,2]
[358664711,1745351438965,-171.75,0.00021799,2]
[358664713,1745351438975,-162.08,0.00021799,2]
[358664714,1745351438984,-168.91,0.00021799,2]
[358664716,1745351438993,-395.87,0.00021799,2]
[358664718,1745351439002,-1015.58,0.00021799,2]
[358664720,1745351439011,-200.0,0.00021799,2]
[358664722,1745351439020,-512.0,0.00021799,2]
[358664724,1745351439029,-312.23,0.00021799,2]
[358664725,1745351439039,-203.77,0.00021799,2]
[358664727,1745351439049,-707.9,0.00021799,2]
[358664729,1745351439058,-196.56,0.00021799,2]
[358664731,1745351439067,-500.0,0.00021809,7]
[358664733,1745351439077,-150.0,0.00021825,2]
[358664735,1745351439087,-502.0,0.00021836,2]
[358664737,1745351439097,-2592.01,0.00021846,2]
[358664739,1745351439106,-176.15,0.00021846,2]
[358664741,1745351439115,-926.93,0.00021848,2]
[358664742,1745351439124,-166.66,0.00021858,2]
[358664744,1745351439134,-250.0,0.00021889,2]
[358664746,1745351439144,-150.0,0.00021889,2]
[358664748,1745351439154,-250.0,0.00021889,2]
[358664750,1745351439164,-150.0,0.00021889,2]
[358664752,1745351439173,-250.0,0.00021889,2]
[358664754,1745351439184,-150.0,0.00021889,2]
[358664756,1745351439194,-202.01,0.00021918,2]
[358664758,1745351439209,-205.51909681,0.00021918,7]
[358664760,1745351439218,-16863.47,0.00021923,2]
[358664762,1745351439229,-15362.56,0.00021931,2]
[358664763,1745351439238,-978.73,0.00022044,2]
[358664765,1745351439249,-168.72,0.00022044,2]
[358664767,1745351439258,-250.0,0.00022057,2]
[358664768,1745351439268,-156.22,0.0002207,2]
[358664769,1745351439278,-1379.0,0.000221,5]
[358664770,1745351439287,-3890.67728182,0.00022107,3]
[358664771,1745351439296,-407.27,0.00022236,2]
[358664772,1745351439305,-218.0,0.00022329,2]
[358664773,1745351439314,-8102.40927895,0.00022344,2]
[358664774,1745351439323,-174.85,0.00022479,2]
[358664775,1745351439332,-166.66,0.00022692,2]
[358664776,1745351439342,-300.0,0.00023,2]
[358664777,1745351439351,-3890.67728182,0.00023314,4]
[358664778,1745351439360,-211.00409252,0.00023437,2]
[358664779,1745351439371,-150.0,0.00023448,2]
[358664780,1745351439383,-150.0,0.00023459,2]
[358664781,1745351439393,-150.0,0.00023481,2]
[358664782,1745351439403,-166.66,0.00023525,2]
[358664784,1745351439412,-150.0,0.00023564,2]
[358664785,1745351439421,-150.0,0.00023566,2]
[358664787,1745351439431,-8102.40927895,0.00023567,2]
[358664789,1745351439441,-150.0,0.00023569,2]
[358664791,1745351439450,-150.0,0.00023573,2]
[358664793,1745351439459,-150.0,0.00023599,2]
[358664795,1745351439468,-587.0,0.00023599,2]
[358664797,1745351439477,-150.0,0.0002366,2]
[358664799,1745351439486,-2681.0,0.00023671,2]
[358664801,1745351439495,-242.37013041,0.00023677,2]
[358664803,1745351439504,-150.0,0.00023704,2]
[358664805,1745351439513,-150.0,0.0002371,2]
[358664807,1745351439523,-761.0,0.000238,2]
[358664809,1745351439532,-1763.0,0.00023826,2]
[358664811,1745351439542,-377.99,0.00023836,2]
[358664813,1745351439554,-167.2,0.00023852,2]
[358664815,1745351439563,-978.73,0.00024308,2]
[358664817,1745351439573,-1000.0,0.00024489,2]
[358664819,1745351439583,-3890.67728182,0.00024521,5]
[358664821,1745351439592,-274.22,0.00024658,2]
[358664823,1745351439602,-500.0,0.00024685,2]
[358664825,1745351439612,-500.0,0.00024773,2]
[358664827,1745351439621,-501.58818391,0.00024773,2]
[358664829,1745351439631,-500.0,0.00024773,2]
[358664831,1745351439640,-8102.40927895,0.00024789,2]
[358664833,1745351439649,-151.0,0.000248,7]
[358664835,1745351439658,-178.60976,0.000248,7]
[358664837,1745351439667,-151.0,0.000248,7]
[358664839,1745351439677,-151.0,0.000248,7]
[358664841,1745351439687,-151.0,0.000248,7]
[358664843,1745351439697,-151.0,0.000248,7]
[358664845,1745351439706,-151.0,0.000248,7]
[358664847,1745351439716,-239640.07065,0.000248,3]
[358664849,1745351439725,-500.0,0.00024873,2]
[358664851,1745351439735,-500.0,0.00024873,2]
[358664853,1745351439744,-630.59176071,0.00024873,2]
[358664855,1745351439754,-563.63261315,0.00024873,2]
[358664857,1745351439764,-500.0,0.00024873,2]
[358664859,1745351439775,-151.0,0.000249,7]
[358664861,1745351439785,-493468.724179,0.000249,3]
[358664863,1745351439795,-499.99,0.0002498,2]
[358664865,1745351439806,-3530.26,0.0002498,2]
[358664867,1745351439815,-51441.51,0.0002498,2]
[358664869,1745351439825,-150.99,0.0002498,2]
[358664871,1745351439835,-350.0,0.00025,2]
[358664873,1745351439844,-500.0,0.00025452,2]
[358664874,1745351439853,-500.0,0.00025452,2]
[358664876,1745351439863,-558.86538217,0.00025452,2]
[358664878,1745351439873,-151.0,0.00025699,7]
[358664880,1745351439882,-151.0,0.00025699,7]
[358664882,1745351439892,-151.0,0.00025699,7]
[358664884,1745351439901,-823.0,0.00025699,2]
[358664886,1745351439911,-3890.67728182,0.00025728,6]
[358664888,1745351439919,-500.0,0.00025773,2]
[358664890,1745351439928,-7029.22,0.00025786,2]
[358664892,1745351439938,-150.99,0.00025786,2]
[358664894,1745351439947,-434.64,0.00025786,2]
[358664896,1745351439956,-9999.99,0.00025786,2]
[358664898,1745351439966,-9999.99,0.00025786,2]
[358664900,1745351439975,-2840.68,0.00025786,2]
[358664902,1745351439984,-441.07,0.00025786,2]
[358664905,1745351439993,-9999.99,0.00025786,2]
[358664907,1745351440002,-8102.40927895,0.00026011,2]
[358664910,1745351440011,-2469.0,0.00026071,2]
[358664912,1745351440020,-170.05735251,0.00026311,2]
[358664914,1745351440029,-762.39392613,0.000264,2]
[358664916,1745351440038,-151.0,0.000264,7]
[358664918,1745351440047,-151.0,0.000264,7]
[358664919,1745351440056,-151.0,0.000264,7]
[358664921,1745351440065,-372.00383193,0.000264,2]
[358664923,1745351440074,-978.73,0.00026571,2]
[358664925,1745351440084,-3890.67728182,0.00026934,7]
[358664927,1745351440093,-400.0,0.00027,2]
[358664929,1745351440102,-1000.0,0.0002721,2]
[358664931,1745351440111,-8102.40927895,0.00027233,2]
[358664933,1745351440121,-163.82,0.00027397,2]
[358664935,1745351440130,-337.0,0.000274,2]
[358664937,1745351440139,-830.0,0.000274,2]
[358664939,1745351440148,-168.72,0.00027555,2]
[358664941,1745351440158,-912.0,0.00027986,2]
[358664943,1745351440167,-200.0,0.00028,2]
[358664945,1745351440176,-200.0,0.00028,2]
[358664947,1745351440187,-3890.67728182,0.00028141,7]
[358664949,1745351440197,-8102.40927895,0.00028456,2]
[358664951,1745351440209,-3205.0,0.00028528,2]
[358664953,1745351440218,-978.73,0.00028835,2]
[358664955,1745351440227,-173.54,0.00028982,120]
[358664957,1745351440236,-1000.0,0.00029,15]
[358664959,1745351440246,-70348.82052086,0.00029,2]
[358664961,1745351440255,-450.0,0.00029,2]
[358664963,1745351440264,-3890.67728182,0.00029348,8]
[358664965,1745351440274,-407.27,0.00029648,120]
[358664967,1745351440284,-8102.40927895,0.00029678,2]
[358664969,1745351440293,-1000.0,0.00029931,2]
[358664971,1745351440303,-846.92426899,0.0003,120]
[358664973,1745351440312,-4999.999997,0.0003,2]
[358664975,1745351440321,-6413.97680332,0.0003,20]
[358664977,1745351440331,-6538.378137,0.0003,10]
[358664979,1745351440341,-734.15873515,0.0003,120]
[358664981,1745351440350,-258.84663774,0.0003,60]
[358664983,1745351440360,-610.0,0.00030137,2]
[358664985,1745351440370,-500.0,0.00030252,5]
[358664987,1745351440379,-500.0,0.00030252,5]
[358664989,1745351440389,-1000.0,0.00030352,5]
[358664991,1745351440399,-1000.0,0.00030352,5]
[358664993,1745351440408,-151.92380979,0.000305,2]
[358664995,1745351440418,-512.0,0.00030519,2]
[358664997,1745351440427,-3890.67728182,0.00030555,9]
[358664999,1745351440437,-8102.40927895,0.000309,2]
[358665001,1745351440446,-394073.05518817,0.00031,120]
[358665003,1745351440455,-268.204868,0.00031,7]
[358665005,1745351440465,-151.0,0.00031,7]
[358665007,1745351440475,-151.0,0.00031,7]
[358665009,1745351440484,-151.0,0.00031,7]
[358665011,1745351440494,-151.0,0.00031,7]
[358665013,1745351440503,-151.0,0.00031,7]
[358665014,1745351440512,-151.0,0.00031,7]
[358665016,1745351440522,-151.0,0.00031,7]
[358665018,1745351440531,-151.0,0.00031,7]
[358665020,1745351440541,-151.0,0.00031,7]
[358665022,1745351440550,-151.0,0.00031,7]
[358665025,1745351440560,-244.12793952,0.00031,7]
[358665027,1745351440570,-151.0,0.00031,7]
[358665029,1745351440579,-151.0,0.00031,7]
[358665031,1745351440589,-151.0,0.00031,7]
[358665032,1745351440599,-254.735556,0.00031,7]
[358665034,1745351440609,-151.0,0.00031,7]
[358665036,1745351440618,-151.0,0.00031,7]
[358665038,1745351440627,-416.203215,0.00031,2]
[358665040,1745351440637,-416.203215,0.00031,2]
[358665043,1745351440647,-365.858812,0.00031,7]
[358665045,1745351440657,-151.0,0.00031,7]
[358665047,1745351440667,-365.858812,0.00031,7]
[358665049,1745351440676,-151.0,0.00031,7]
[358665051,1745351440688,-151.0,0.00031,7]
[358665053,1745351440698,-189.604665,0.00031,7]
[358665055,1745351440708,-189.604665,0.00031,7]
[358665057,1745351440718,-847.108566,0.00031,7]
[358665059,1745351440728,-847.108566,0.00031,7]
[358665061,1745351440738,-689.429405,0.00031,7]
[358665063,1745351440748,-689.429405,0.00031,7]
[358665065,1745351440758,-704.052361,0.00031,7]
[358665067,1745351440768,-704.052361,0.00031,7]
[358665069,1745351440780,-500.0,0.00031,2]
[358665071,1745351440790,-978.73,0.00031099,2]
[358665073,1745351440800,-520.94346662,0.00031252,5]
[358665075,1745351440810,-3890.67728182,0.00031762,10]
[358665077,1745351440820,-1246.85184427,0.00032,2]
[358665079,1745351440829,-1506.76938807,0.00032,2]
[358665081,1745351440839,-483.29948409,0.00032,120]
[358665083,1745351440848,-150.0,0.000323,120]
[358665085,1745351440858,-173.54,0.00032605,120]
[358665087,1745351440867,-1000.0,0.00032652,2]
[358665089,1745351440877,-163.82,0.00032877,2]
[358665091,1745351440886,-153.07,0.00032877,2]
[358665093,1745351440896,-200.11,0.00032877,30]
[358665095,1745351440905,-1500.0,0.00032877,120]
[358665097,1745351440915,-1000.0,0.00032877,2]
[358665099,1745351440925,-372.00383193,0.000329,4]
[358665101,1745351440936,-830.03719845,0.000329,2]
[358665104,1745351440946,-1060.98,0.00032904,30]
[358665106,1745351440956,-3890.67728182,0.00032969,11]
[358665108,1745351440966,-25121.40915349,0.00033,2]
[358665110,1745351440975,-550.0,0.00033,2]
[358665111,1745351440985,-168.72,0.00033065,2]
[358665113,1745351440994,-978.73,0.00033363,2]
[358665116,1745351441004,-3890.67728182,0.00034176,11]
[358665118,1745351441014,-916.0,0.00034312,2]
[358665120,1745351441024,-2057.0,0.00034312,2]
[358665122,1745351441034,-153.889,0.00034312,2]
[358665124,1745351441043,-1333.0,0.00034312,2]
[358665126,1745351441053,-795.0,0.00034312,2]
[358665128,1745351441063,-185.024,0.00034312,2]
[358665130,1745351441072,-1443.0,0.00034312,2]
[358665132,1745351441082,-1284.0,0.00034312,2]
[358665134,1745351441091,-4164.0,0.00034312,2]
[358665135,1745351441100,-876.0,0.00034312,2]
[358665137,1745351441110,-3981.0,0.00034312,2]
[358665139,1745351441119,-865.0,0.00034312,2]
[358665141,1745351441129,-247.973,0.00034312,2]
[358665143,1745351441139,-154.883,0.00034312,2]
[358665146,1745351441148,-150.0,0.00034548,10]
[358665147,1745351441158,-856.72617165,0.0003489,14]
[358665149,1745351441167,-482.59201737,0.00035,2]
[358665151,1745351441176,-354.36991513,0.00035,30]
[358665154,1745351441186,-439.28065872,0.00035,120]
[358665156,1745351441196,-669.1238295,0.00035,30]
[358665158,1745351441209,-600.0,0.00035,2]
[358665160,1745351441219,-377.99,0.00035068,2]
[358665162,1745351441228,-3890.67728182,0.00035383,12]
[358665182,1745351441416,-150.0,0.00035616,5]
[358665185,1745351441428,-978.73,0.00035627,2]
[358665187,1745351441438,-7487.03068222,0.0003593,7]
[358665189,1745351441448,-151.0,0.00036141,7]
[358665191,1745351441457,-1499.375539,0.00036141,7]
[358665193,1745351441467,-151.0,0.00036141,7]
[358665195,1745351441476,-411.654315,0.00036141,7]
[358665197,1745351441486,-411.654315,0.00036141,7]
[358665199,1745351441495,-151.0,0.00036141,7]
[358665201,1745351441504,-151.0,0.00036141,7]
[358665203,1745351441514,-151.0,0.00036141,7]
[358665205,1745351441523,-224.477254,0.00036141,7]
[358665207,1745351441532,-151.0,0.00036141,7]
[358665208,1745351441541,-151.0,0.00036141,7]
[358665211,1745351441551,-3890.67728182,0.0003659,13]
[358665213,1745351441560,-564.65783298,0.00036612,40]
[358665215,1745351441570,-650.0,0.00037,2]
[358665217,1745351441580,-228.888657,0.00037127,7]
[358665219,1745351441589,-153.848707,0.00037127,7]
[358665220,1745351441598,-822.535712,0.00037127,7]
[358665223,1745351441607,-822.535712,0.00037127,7]
[358665225,1745351441617,-153.739,0.00037127,2]
[358665227,1745351441628,-243.78506818,0.000372,120]
[358665229,1745351441637,-243.78506816,0.000372,120]
[358665231,1745351441647,-243.78506816,0.000372,120]
[358665233,1745351441656,-391.03466824,0.000373,2]
[358665235,1745351441665,-563.10417948,0.000373,2]
[358665237,1745351441675,-14784.9093021,0.000373,2]
[358665238,1745351441685,-371.0,0.00037312,2]
[358665241,1745351441695,-2057.0,0.00037312,2]
[358665243,1745351441707,-1333.0,0.00037312,2]
[358665244,1745351441716,-795.0,0.00037312,2]
[358665246,1745351441726,-1443.0,0.00037312,2]
[358665248,1745351441735,-1284.0,0.00037312,2]
[358665250,1745351441744,-4164.0,0.00037312,2]
[358665252,1745351441753,-876.0,0.00037312,2]
[358665254,1745351441763,-3981.0,0.00037312,2]
[358665256,1745351441772,-150.0,0.00037312,2]
[358665258,1745351441781,-151.0,0.00037312,7]
[358665260,1745351441794,-238.334303,0.00037312,7]
[358665262,1745351441803,-238.334303,0.00037312,7]
[358665264,1745351441812,-150.0,0.000376,120]
[358665266,1745351441822,-3890.67728182,0.00037797,14]
[358665268,1745351441831,-978.73,0.00037891,2]
[358665270,1745351441841,-269.8515009,0.00038356,5]
[358665272,1745351441850,-1311.08,0.000384,14]
[358665274,1745351441859,-150.38,0.000389,2]
[358665276,1745351441869,-150.38,0.000389,2]
[358665278,1745351441879,-150.38,0.000389,2]
[358665280,1745351441889,-150.38,0.000389,2]
[358665282,1745351441898,-150.38,0.000389,2]
[358665284,1745351441907,-150.38,0.000389,2]
[358665286,1745351441917,-150.38,0.000389,2]
[358665288,1745351441927,-150.38,0.000389,2]
[358665290,1745351441936,-150.38,0.000389,2]
[358665292,1745351441946,-150.38,0.000389,2]
[358665294,1745351441955,-150.38,0.000389,2]
[358665296,1745351441965,-150.38,0.000389,2]
[358665298,1745351441975,-150.38,0.000389,2]
[358665300,1745351441985,-150.38,0.000389,2]
[358665302,1745351441994,-150.38,0.000389,2]
[358665304,1745351442004,-150.38,0.000389,2]
[358665306,1745351442013,-150.38,0.000389,2]
[358665308,1745351442023,-150.38,0.000389,2]
[358665310,1745351442032,-150.38,0.000389,2]
[358665312,1745351442041,-150.38,0.000389,2]
[358665314,1745351442050,-150.38,0.000389,2]
[358665316,1745351442060,-150.38,0.000389,2]
[358665318,1745351442069,-150.38,0.000389,2]
[358665320,1745351442079,-150.38,0.000389,2]
[358665322,1745351442088,-150.38,0.000389,2]
[358665324,1745351442097,-150.38,0.000389,2]
[358665326,1745351442107,-150.38,0.000389,2]
[358665328,1745351442117,-150.38,0.000389,2]
[358665330,1745351442126,-150.38,0.000389,2]
[358665332,1745351442135,-150.38,0.000389,2]
[358665334,1745351442145,-3366.45929378,0.00039,120]
[358665336,1745351442155,-700.0,0.00039,2]
[358665338,1745351442166,-3890.67728182,0.00039003,14]
[358665339,1745351442175,-151.0,0.00039397,14]
[358665340,1745351442185,-372.00383193,0.000394,13]
[358665341,1745351442195,-150.38,0.00039716,2]
[358665342,1745351442209,-151.0,0.00039726,14]
[358665343,1745351442218,-151.0,0.00039726,14]
[358665344,1745351442227,-151.0,0.00039726,14]
[358665345,1745351442236,-514.25107054,0.00039726,15]
[358665346,1745351442246,-500.0,0.00039726,15]
[358665348,1745351442256,-500.0,0.00039726,15]
[358665350,1745351442265,-500.0,0.00039726,15]
[358665352,1745351442275,-500.0,0.00039726,15]
[358665354,1745351442285,-500.0,0.00039726,15]
[358665356,1745351442294,-500.0,0.00039726,15]
[358665358,1745351442303,-500.0,0.00039726,15]
[358665360,1745351442313,-500.0,0.00039726,15]
[358665362,1745351442323,-500.0,0.00039726,15]
[358665364,1745351442332,-500.0,0.00039726,15]
[358665365,1745351442341,-500.0,0.00039726,15]
[358665367,1745351442350,-500.0,0.00039726,15]
[358665369,1745351442360,-500.0,0.00039726,15]
[358665371,1745351442370,-500.0,0.00039726,15]